[Event "Titled Tuesday Blitz April 19 Late 2022"]
[White "Saldano Dayer, Horacio"]
[Black "Adury, Anant"]
[WhiteFideId "103411"]
[BlackFideId "30964687"]
[WhiteElo "2419"]
[BlackElo "2119"]
[Result "1/2-1/2"]
[Round "02"]
[TimeControl "180+1"]
[Date "2022.04.19"]
[WhiteClock "0:00:13"]
[BlackClock "0:00:35"]

1. b3 {[%clk 0:03:00]}  d5 {[%clk 0:02:59]} 2. e3 {[%clk 0:02:59]}  Nf6 {[%clk 0:02:58]} 3. Bb2 {[%clk 0:02:57]}  Nbd7 {[%clk 0:02:58]} 4. f4 {[%clk 0:02:55]}  a5 {[%clk 0:02:54]} 5. a4 {[%clk 0:02:51]}  b6 {[%clk 0:02:54]} 6. Nf3 {[%clk 0:02:50]}  e6 {[%clk 0:02:54]} 7. Bb5 {[%clk 0:02:46]}  Bb7 {[%clk 0:02:52]} 8. Ne5 {[%clk 0:02:46]}  Bd6 {[%clk 0:02:45]} 9. O-O {[%clk 0:02:44]}  O-O {[%clk 0:02:42]} 10. Nxd7 {[%clk 0:02:31]}  Nxd7 {[%clk 0:02:37]} 11. Rf3 {[%clk 0:02:29]}  c6 {[%clk 0:02:33]} 12. Bd3 {[%clk 0:02:28]}  e5 {[%clk 0:02:33]} 13. Bxh7+ {[%clk 0:02:20]}  Kxh7 {[%clk 0:02:25]} 14. Rh3+ {[%clk 0:02:20]}  Kg8 {[%clk 0:02:25]} 15. Qh5 {[%clk 0:01:44]}  f6 {[%clk 0:02:24]} 16. Nc3 {[%clk 0:01:33]}  exf4 {[%clk 0:02:18]} 17. exf4 {[%clk 0:01:27]}  Bxf4 {[%clk 0:02:18]} 18. Qh7+ {[%clk 0:01:20]}  Kf7 {[%clk 0:02:18]} 19. Rf1 {[%clk 0:01:19]}  Rh8 {[%clk 0:02:14]} 20. Qxh8 {[%clk 0:01:06]}  Bxh2+ {[%clk 0:02:13]} 21. Rxh2 {[%clk 0:01:03]}  Qxh8 {[%clk 0:02:14]} 22. Rxh8 {[%clk 0:01:02]}  Rxh8 {[%clk 0:02:15]} 23. Ne2 {[%clk 0:01:00]}  Nc5 {[%clk 0:02:14]} 24. d3 {[%clk 0:00:59]}  Bc8 {[%clk 0:02:14]} 25. Nf4 {[%clk 0:00:57]}  Ne6 {[%clk 0:02:12]} 26. Nxe6 {[%clk 0:00:54]}  Bxe6 {[%clk 0:02:13]} 27. Bd4 {[%clk 0:00:53]}  c5 {[%clk 0:02:13]} 28. Bc3 {[%clk 0:00:54]}  d4 {[%clk 0:02:13]} 29. Bd2 {[%clk 0:00:54]}  Rh5 {[%clk 0:02:13]} 30. Rf3 {[%clk 0:00:51]}  Re5 {[%clk 0:02:12]} 31. Rf2 {[%clk 0:00:50]}  Bd5 {[%clk 0:02:08]} 32. Bf4 {[%clk 0:00:50]}  Re1+ {[%clk 0:02:04]} 33. Rf1 {[%clk 0:00:50]}  Re2 {[%clk 0:02:03]} 34. Rf2 {[%clk 0:00:50]}  Re1+ {[%clk 0:02:03]} 35. Rf1 {[%clk 0:00:50]}  Re6 {[%clk 0:02:01]} 36. Bc7 {[%clk 0:00:49]}  g5 {[%clk 0:02:00]} 37. Kf2 {[%clk 0:00:47]}  Rc6 {[%clk 0:01:55]} 38. Bb8 {[%clk 0:00:45]}  Re6 {[%clk 0:01:52]} 39. g3 {[%clk 0:00:44]}  Re8 {[%clk 0:01:48]} 40. Bc7 {[%clk 0:00:43]}  Rh8 {[%clk 0:01:48]} 41. Ke1 {[%clk 0:00:36]}  Rh2 {[%clk 0:01:41]} 42. Rf2 {[%clk 0:00:36]}  Rh1+ {[%clk 0:01:41]} 43. Kd2 {[%clk 0:00:36]}  Rg1 {[%clk 0:01:36]} 44. Bxb6 {[%clk 0:00:34]}  Rxg3 {[%clk 0:01:37]} 45. Bxc5 {[%clk 0:00:34]}  Kg6 {[%clk 0:01:32]} 46. Bxd4 {[%clk 0:00:34]}  f5 {[%clk 0:01:32]} 47. c4 {[%clk 0:00:34]}  Bc6 {[%clk 0:01:30]} 48. Bb6 {[%clk 0:00:33]}  f4 {[%clk 0:01:30]} 49. Bxa5 {[%clk 0:00:34]}  Kf5 {[%clk 0:01:28]} 50. Bc7 {[%clk 0:00:34]}  Rh3 {[%clk 0:01:22]} 51. a5 {[%clk 0:00:34]}  Rh7 {[%clk 0:01:09]} 52. Bd6 {[%clk 0:00:33]}  Rd7 {[%clk 0:01:07]} 53. c5 {[%clk 0:00:23]}  f3 {[%clk 0:01:07]} 54. Bg3 {[%clk 0:00:20]}  g4 {[%clk 0:01:05]} 55. Kc3 {[%clk 0:00:20]}  Ra7 {[%clk 0:00:56]} 56. b4 {[%clk 0:00:19]}  Bb5 {[%clk 0:00:55]} 57. d4 {[%clk 0:00:19]}  Rd7 {[%clk 0:00:55]} 58. a6 {[%clk 0:00:18]}  Bxa6 {[%clk 0:00:54]} 59. c6 {[%clk 0:00:18]}  Rh7 {[%clk 0:00:53]} 60. d5 {[%clk 0:00:18]}  Bb5 {[%clk 0:00:52]} 61. Kd4 {[%clk 0:00:17]}  Rh3 {[%clk 0:00:51]} 62. Kc5 {[%clk 0:00:17]}  Bxc6 {[%clk 0:00:36]} 63. dxc6 {[%clk 0:00:17]}  Rxg3 {[%clk 0:00:37]} 64. c7 {[%clk 0:00:17]}  Rg2 {[%clk 0:00:38]} 65. c8=Q+ {[%clk 0:00:17]}  Kf4 {[%clk 0:00:37]} 66. Qf8+ {[%clk 0:00:17]}  Kg3 {[%clk 0:00:37]} 67. Rxg2+ {[%clk 0:00:15]}  Kxg2 {[%clk 0:00:38]} 68. Qf4 {[%clk 0:00:15]}  g3 {[%clk 0:00:38]} 69. Kd4 {[%clk 0:00:15]}  f2 {[%clk 0:00:38]} 70. Qe4+ {[%clk 0:00:15]}  Kg1 {[%clk 0:00:36]} 71. Qe3 {[%clk 0:00:15]}  Kg2 {[%clk 0:00:35]} 72. Qe4+ {[%clk 0:00:14]}  Kg1 {[%clk 0:00:35]} 73. Qe3 {[%clk 0:00:13]}  Kg2 {[%clk 0:00:35]} 74. Qe4+ {[%clk 0:00:13]} 1/2-1/2


[Site "https://www.chess.com"]

[Event "Titled Tuesday Blitz April 19 Late 2022"]
[White "Sanal, Vahap"]
[Black "Kalogridis, Antonios"]
[WhiteFideId "6300545"]
[BlackFideId "25833901"]
[WhiteElo "2603"]
[BlackElo "1596"]
[Result "1-0"]
[Round "02"]
[TimeControl "180+1"]
[Date "2022.04.19"]
[WhiteClock "0:01:04"]
[BlackClock "0:00:17"]

1. Nf3 {[%clk 0:03:00]}  Nf6 {[%clk 0:02:59]} 2. g3 {[%clk 0:03:01]}  b6 {[%clk 0:02:56]} 3. Bg2 {[%clk 0:03:02]}  Bb7 {[%clk 0:02:57]} 4. O-O {[%clk 0:03:02]}  g6 {[%clk 0:02:57]} 5. d3 {[%clk 0:03:03]}  Bg7 {[%clk 0:02:58]} 6. e4 {[%clk 0:03:03]}  O-O {[%clk 0:02:58]} 7. Nc3 {[%clk 0:03:03]}  d6 {[%clk 0:02:57]} 8. Re1 {[%clk 0:03:03]}  c5 {[%clk 0:02:58]} 9. Bg5 {[%clk 0:03:01]}  Nbd7 {[%clk 0:02:58]} 10. Qd2 {[%clk 0:03:01]}  a6 {[%clk 0:02:55]} 11. Bh6 {[%clk 0:03:01]}  b5 {[%clk 0:02:54]} 12. h3 {[%clk 0:02:58]}  Nb6 {[%clk 0:02:50]} 13. Bxg7 {[%clk 0:02:57]}  Kxg7 {[%clk 0:02:50]} 14. Ne2 {[%clk 0:02:54]}  e5 {[%clk 0:02:49]} 15. Nh2 {[%clk 0:02:53]}  d5 {[%clk 0:02:49]} 16. exd5 {[%clk 0:02:53]}  Nfxd5 {[%clk 0:02:46]} 17. Nc3 {[%clk 0:02:52]}  Qd6 {[%clk 0:02:38]} 18. Ng4 {[%clk 0:02:52]}  f6 {[%clk 0:02:37]} 19. Qh6+ {[%clk 0:02:51]}  Kg8 {[%clk 0:02:34]} 20. Ne4 {[%clk 0:02:52]}  Qc7 {[%clk 0:02:34]} 21. c4 {[%clk 0:02:51]}  bxc4 {[%clk 0:02:21]} 22. dxc4 {[%clk 0:02:52]}  Nxc4 {[%clk 0:02:20]} 23. Rac1 {[%clk 0:02:52]}  f5 {[%clk 0:02:20]} 24. Rxc4 {[%clk 0:02:49]}  fxe4 {[%clk 0:02:18]} 25. Bxe4 {[%clk 0:02:48]}  Nf6 {[%clk 0:02:01]} 26. Nxf6+ {[%clk 0:02:46]}  Rxf6 {[%clk 0:02:01]} 27. Qe3 {[%clk 0:02:29]}  Bxe4 {[%clk 0:01:55]} 28. Rxe4 {[%clk 0:02:29]}  Raf8 {[%clk 0:01:48]} 29. Re2 {[%clk 0:02:29]}  Qf7 {[%clk 0:01:45]} 30. a3 {[%clk 0:02:24]}  Qe6 {[%clk 0:01:41]} 31. Kg2 {[%clk 0:02:18]}  Qc6 {[%clk 0:01:33]} 32. Kg1 {[%clk 0:02:14]}  Qe6 {[%clk 0:01:31]} 33. Kh2 {[%clk 0:02:07]}  Rf3 {[%clk 0:01:24]} 34. Qxc5 {[%clk 0:02:05]}  Qf7 {[%clk 0:01:10]} 35. Kg2 {[%clk 0:01:48]}  Qf5 {[%clk 0:00:50]} 36. Qd5+ {[%clk 0:01:48]}  Rf7 {[%clk 0:00:48]} 37. Qc5 {[%clk 0:01:27]}  Rd3 {[%clk 0:00:27]} 38. Qxe5 {[%clk 0:01:20]}  Qf3+ {[%clk 0:00:27]} 39. Kh2 {[%clk 0:01:07]}  Rd1 {[%clk 0:00:26]} 40. Qe8+ {[%clk 0:01:06]}  Kg7 {[%clk 0:00:19]} 41. Qxf7+ {[%clk 0:01:00]}  Kxf7 {[%clk 0:00:15]} 42. Rf4+ {[%clk 0:01:00]}  Qxf4 {[%clk 0:00:16]} 43. gxf4 {[%clk 0:01:01]}  Rd4 {[%clk 0:00:16]} 44. Kg3 {[%clk 0:01:01]}  Rd3+ {[%clk 0:00:16]} 45. Re3 {[%clk 0:01:01]}  Rd2 {[%clk 0:00:16]} 46. Rb3 {[%clk 0:01:02]}  Rd6 {[%clk 0:00:15]} 47. Rb7+ {[%clk 0:01:02]}  Kf6 {[%clk 0:00:16]} 48. Rxh7 {[%clk 0:01:01]}  Rd3+ {[%clk 0:00:16]} 49. f3 {[%clk 0:01:02]}  Rb3 {[%clk 0:00:14]} 50. Ra7 {[%clk 0:01:02]}  Rxb2 {[%clk 0:00:15]} 51. Rxa6+ {[%clk 0:01:03]}  Kg7 {[%clk 0:00:15]} 52. a4 {[%clk 0:01:02]}  Rb1 {[%clk 0:00:16]} 53. Ra8 {[%clk 0:01:02]}  Ra1 {[%clk 0:00:16]} 54. a5 {[%clk 0:01:02]}  Ra2 {[%clk 0:00:16]} 55. a6 {[%clk 0:01:03]}  Ra1 {[%clk 0:00:17]} 56. a7 {[%clk 0:01:02]}  Ra2 {[%clk 0:00:17]} 57. h4 {[%clk 0:01:03]}  Ra1 {[%clk 0:00:17]} 58. h5 {[%clk 0:01:03]}  gxh5 {[%clk 0:00:17]} 59. f5 {[%clk 0:01:04]} 1-0


[Site "https://www.chess.com"]

[Event "Titled Tuesday Blitz April 19 Late 2022"]
[White "Senthilkumar, Pranav"]
[Black "Ricaurte Lopez, Juan Carlos"]
[WhiteFideId "2083477"]
[BlackFideId "3600327"]
[WhiteElo "2475"]
[BlackElo "2209"]
[Result "1-0"]
[Round "02"]
[TimeControl "180+1"]
[Date "2022.04.19"]
[WhiteClock "0:01:46"]
[BlackClock "0:00:02"]

1. Nf3 {[%clk 0:03:00]}  d5 {[%clk 0:02:58]} 2. g3 {[%clk 0:03:01]}  c5 {[%clk 0:02:57]} 3. Bg2 {[%clk 0:03:02]}  Nc6 {[%clk 0:02:56]} 4. O-O {[%clk 0:03:03]}  e5 {[%clk 0:02:56]} 5. c4 {[%clk 0:03:04]}  d4 {[%clk 0:02:54]} 6. d3 {[%clk 0:03:04]}  Bg4 {[%clk 0:02:52]} 7. h3 {[%clk 0:03:04]}  Bh5 {[%clk 0:02:50]} 8. a3 {[%clk 0:03:02]}  Qd7 {[%clk 0:02:49]} 9. b4 {[%clk 0:03:01]}  cxb4 {[%clk 0:02:45]} 10. axb4 {[%clk 0:03:02]}  Bxb4 {[%clk 0:02:44]} 11. g4 {[%clk 0:03:00]}  Bg6 {[%clk 0:02:41]} 12. Ba3 {[%clk 0:02:59]}  Bxa3 {[%clk 0:02:36]} 13. Nxa3 {[%clk 0:03:00]}  Nge7 {[%clk 0:02:33]} 14. c5 {[%clk 0:02:56]}  O-O {[%clk 0:02:28]} 15. Nc4 {[%clk 0:02:56]}  Qd5 {[%clk 0:02:18]} 16. Nfxe5 {[%clk 0:02:52]}  Qxc5 {[%clk 0:02:16]} 17. Nd7 {[%clk 0:02:51]}  Qb4 {[%clk 0:01:52]} 18. Rb1 {[%clk 0:02:50]}  Qc3 {[%clk 0:01:49]} 19. Nxf8 {[%clk 0:02:49]}  Kxf8 {[%clk 0:01:43]} 20. Rxb7 {[%clk 0:02:47]}  Rc8 {[%clk 0:01:28]} 21. Nd6 {[%clk 0:02:42]}  Rd8 {[%clk 0:01:26]} 22. Nb5 {[%clk 0:02:39]}  Qc5 {[%clk 0:01:20]} 23. Qa4 {[%clk 0:02:21]}  a5 {[%clk 0:01:15]} 24. Rc7 {[%clk 0:02:15]}  Nd5 {[%clk 0:01:07]} 25. Na7 {[%clk 0:02:07]}  Nxc7 {[%clk 0:00:07]} 26. Nxc6 {[%clk 0:02:00]}  Re8 {[%clk 0:00:05]} 27. Nxd4 {[%clk 0:01:58]}  Nd5 {[%clk 0:00:02]} 28. Nb3 {[%clk 0:01:46]} 1-0


[Site "https://www.chess.com"]

[Event "Titled Tuesday Blitz April 19 Late 2022"]
[White "Sernecki, Franciszek"]
[Black "Suleymanli, Aydin"]
[WhiteFideId "1169297"]
[BlackFideId "13413937"]
[WhiteElo "2165"]
[BlackElo "2481"]
[Result "0-1"]
[Round "02"]
[TimeControl "180+1"]
[Date "2022.04.19"]
[WhiteClock "0:00:02"]
[BlackClock "0:00:35"]

1. d4 {[%clk 0:03:00]}  Nf6 {[%clk 0:02:59]} 2. c4 {[%clk 0:02:59]}  d6 {[%clk 0:02:56]} 3. Nc3 {[%clk 0:02:56]}  g6 {[%clk 0:02:56]} 4. e4 {[%clk 0:02:55]}  Bg7 {[%clk 0:02:56]} 5. Bg5 {[%clk 0:02:56]}  Nbd7 {[%clk 0:02:55]} 6. Nf3 {[%clk 0:02:46]}  e5 {[%clk 0:02:53]} 7. dxe5 {[%clk 0:02:07]}  dxe5 {[%clk 0:02:54]} 8. Be2 {[%clk 0:01:53]}  O-O {[%clk 0:02:51]} 9. O-O {[%clk 0:01:51]}  c6 {[%clk 0:02:49]} 10. Qc2 {[%clk 0:01:51]}  a5 {[%clk 0:02:45]} 11. Rfd1 {[%clk 0:01:47]}  Qe7 {[%clk 0:02:46]} 12. h3 {[%clk 0:01:39]}  Nc5 {[%clk 0:02:44]} 13. Be3 {[%clk 0:01:34]}  Re8 {[%clk 0:02:04]} 14. a3 {[%clk 0:01:15]}  Nfd7 {[%clk 0:01:59]} 15. b4 {[%clk 0:01:07]}  Ne6 {[%clk 0:01:59]} 16. c5 {[%clk 0:00:58]}  axb4 {[%clk 0:01:56]} 17. axb4 {[%clk 0:00:58]}  Rxa1 {[%clk 0:01:57]} 18. Rxa1 {[%clk 0:00:58]}  Nd4 {[%clk 0:01:56]} 19. Qd1 {[%clk 0:00:55]}  Nxf3+ {[%clk 0:01:52]} 20. Bxf3 {[%clk 0:00:54]}  Nf8 {[%clk 0:01:52]} 21. Qc1 {[%clk 0:00:44]}  h5 {[%clk 0:01:47]} 22. Bg5 {[%clk 0:00:39]}  Qc7 {[%clk 0:01:39]} 23. b5 {[%clk 0:00:29]}  Ne6 {[%clk 0:01:37]} 24. Be3 {[%clk 0:00:29]}  Nd4 {[%clk 0:01:36]} 25. Bd1 {[%clk 0:00:23]}  Qe7 {[%clk 0:01:35]} 26. bxc6 {[%clk 0:00:16]}  bxc6 {[%clk 0:01:34]} 27. Ne2 {[%clk 0:00:15]}  Bf6 {[%clk 0:01:21]} 28. Ra8 {[%clk 0:00:11]}  Kh7 {[%clk 0:01:14]} 29. Qc4 {[%clk 0:00:06]}  Be6 {[%clk 0:01:12]} 30. Rxe8 {[%clk 0:00:06]}  Qxe8 {[%clk 0:01:12]} 31. Qc1 {[%clk 0:00:05]}  Qa8 {[%clk 0:01:06]} 32. Nxd4 {[%clk 0:00:05]}  exd4 {[%clk 0:01:07]} 33. Bg5 {[%clk 0:00:06]}  Bg7 {[%clk 0:01:06]} 34. g4 {[%clk 0:00:04]}  hxg4 {[%clk 0:00:50]} 35. Bxg4 {[%clk 0:00:05]}  Qa2 {[%clk 0:00:49]} 36. Bxe6 {[%clk 0:00:05]}  Qxe6 {[%clk 0:00:50]} 37. Qf4 {[%clk 0:00:02]}  Qxh3 {[%clk 0:00:50]} 38. Bf6 {[%clk 0:00:02]}  Qh6 {[%clk 0:00:40]} 39. Qxh6+ {[%clk 0:00:01]}  Kxh6 {[%clk 0:00:39]} 40. Be7 {[%clk 0:00:01]}  f5 {[%clk 0:00:36]} 41. Kf1 {[%clk 0:00:02]}  fxe4 {[%clk 0:00:36]} 42. Ke2 {[%clk 0:00:02]}  d3+ {[%clk 0:00:35]} 43. Kd2 {[%clk 0:00:02]}  Kh5 {[%clk 0:00:35]} 44. f3 {[%clk 0:00:03]}  Bh6+ {[%clk 0:00:35]} 45. Kc3 {[%clk 0:00:02]}  d2 {[%clk 0:00:35]} 46. Kc2 {[%clk 0:00:02]}  exf3 {[%clk 0:00:35]} 47. Bg5 {[%clk 0:00:02]}  Bxg5 {[%clk 0:00:35]} 0-1


[Site "https://www.chess.com"]

[Event "Titled Tuesday Blitz April 19 Late 2022"]
[White "Siddharth, Jagadeesh"]
[Black "Kaganskiy, Gleb"]
[WhiteFideId "5818320"]
[BlackFideId "4132025"]
[WhiteElo "2127"]
[BlackElo "2165"]
[Result "1-0"]
[Round "02"]
[TimeControl "180+1"]
[Date "2022.04.19"]
[WhiteClock "0:00:10"]
[BlackClock "0:00:22"]

1. d4 {[%clk 0:02:55]}  d6 {[%clk 0:02:58]} 2. e4 {[%clk 0:02:52]}  Nf6 {[%clk 0:02:57]} 3. Nc3 {[%clk 0:02:52]}  e5 {[%clk 0:02:57]} 4. Nf3 {[%clk 0:02:52]}  Nbd7 {[%clk 0:02:54]} 5. Bc4 {[%clk 0:02:52]}  Be7 {[%clk 0:02:54]} 6. a4 {[%clk 0:02:52]}  h6 {[%clk 0:02:52]} 7. O-O {[%clk 0:02:50]}  c6 {[%clk 0:02:51]} 8. Re1 {[%clk 0:02:50]}  Qc7 {[%clk 0:02:46]} 9. a5 {[%clk 0:02:46]}  g5 {[%clk 0:02:45]} 10. a6 {[%clk 0:02:41]}  b5 {[%clk 0:02:43]} 11. Bb3 {[%clk 0:02:41]}  Nf8 {[%clk 0:02:37]} 12. Be3 {[%clk 0:02:32]}  Ng6 {[%clk 0:02:30]} 13. d5 {[%clk 0:02:31]}  b4 {[%clk 0:02:26]} 14. Ba4 {[%clk 0:02:08]}  Bd7 {[%clk 0:02:17]} 15. dxc6 {[%clk 0:02:08]}  Bxc6 {[%clk 0:02:13]} 16. Nd5 {[%clk 0:02:08]}  Nxd5 {[%clk 0:02:11]} 17. Qxd5 {[%clk 0:02:09]}  Rc8 {[%clk 0:02:03]} 18. Bxa7 {[%clk 0:01:46]}  Bxa4 {[%clk 0:01:56]} 19. Rxa4 {[%clk 0:01:29]}  Qxa7 {[%clk 0:01:48]} 20. Rea1 {[%clk 0:00:57]}  Nf4 {[%clk 0:01:46]} 21. Qb5+ {[%clk 0:00:55]}  Kf8 {[%clk 0:01:42]} 22. Rxb4 {[%clk 0:00:53]}  Kg7 {[%clk 0:01:22]} 23. Qa4 {[%clk 0:00:31]}  g4 {[%clk 0:01:18]} 24. Rb7 {[%clk 0:00:18]}  Qc5 {[%clk 0:01:10]} 25. Rxe7 {[%clk 0:00:18]}  gxf3 {[%clk 0:01:08]} 26. Qd7 {[%clk 0:00:19]}  Ne2+ {[%clk 0:01:01]} 27. Kh1 {[%clk 0:00:14]}  fxg2+ {[%clk 0:01:02]} 28. Kxg2 {[%clk 0:00:15]}  Nf4+ {[%clk 0:01:00]} 29. Kh1 {[%clk 0:00:13]}  Rhf8 {[%clk 0:00:56]} 30. Rg1+ {[%clk 0:00:13]}  Ng6 {[%clk 0:00:55]} 31. Qf5 {[%clk 0:00:12]}  Kh8 {[%clk 0:00:26]} 32. Qf6+ {[%clk 0:00:10]}  Kh7 {[%clk 0:00:22]} 33. Qxg6+ {[%clk 0:00:10]} 1-0


[Site "https://www.chess.com"]

[Event "Titled Tuesday Blitz April 19 Late 2022"]
[White "Sjugirov, Sanan"]
[Black "Maevsky, Nikolay"]
[WhiteFideId "4189302"]
[BlackFideId "4198220"]
[WhiteElo "2602"]
[BlackElo "2126"]
[Result "1-0"]
[Round "02"]
[TimeControl "180+1"]
[Date "2022.04.19"]
[WhiteClock "0:00:03"]
[BlackClock "0:00:05"]

1. d4 {[%clk 0:03:00]}  d5 {[%clk 0:03:00]} 2. Nf3 {[%clk 0:03:00]}  Nf6 {[%clk 0:02:59]} 3. Bf4 {[%clk 0:03:00]}  c5 {[%clk 0:02:59]} 4. e3 {[%clk 0:03:01]}  Nc6 {[%clk 0:03:00]} 5. Nbd2 {[%clk 0:03:01]}  cxd4 {[%clk 0:02:58]} 6. exd4 {[%clk 0:03:01]}  Bf5 {[%clk 0:02:55]} 7. c3 {[%clk 0:03:00]}  e6 {[%clk 0:02:55]} 8. Qb3 {[%clk 0:02:57]}  Qc8 {[%clk 0:02:55]} 9. Nh4 {[%clk 0:02:51]}  Bg6 {[%clk 0:02:53]} 10. Nxg6 {[%clk 0:02:49]}  hxg6 {[%clk 0:02:53]} 11. Bd3 {[%clk 0:02:44]}  Be7 {[%clk 0:02:51]} 12. g3 {[%clk 0:02:31]}  a6 {[%clk 0:02:48]} 13. Nf3 {[%clk 0:02:23]}  Qd7 {[%clk 0:02:31]} 14. h4 {[%clk 0:02:18]}  Na5 {[%clk 0:02:06]} 15. Qc2 {[%clk 0:02:18]}  Nc6 {[%clk 0:02:04]} 16. Qe2 {[%clk 0:02:17]}  Rc8 {[%clk 0:01:59]} 17. Kf1 {[%clk 0:02:14]}  Nh5 {[%clk 0:01:52]} 18. Bd2 {[%clk 0:02:07]}  Bd6 {[%clk 0:01:49]} 19. Kg2 {[%clk 0:02:07]}  Qc7 {[%clk 0:01:46]} 20. Rh3 {[%clk 0:02:00]}  Nf6 {[%clk 0:01:44]} 21. Re1 {[%clk 0:01:55]}  Kf8 {[%clk 0:01:43]} 22. Bg5 {[%clk 0:01:41]}  Re8 {[%clk 0:01:40]} 23. Qd1 {[%clk 0:01:40]}  Nd7 {[%clk 0:01:29]} 24. Rhh1 {[%clk 0:01:33]}  Na5 {[%clk 0:01:29]} 25. Nd2 {[%clk 0:01:18]}  Nc6 {[%clk 0:01:19]} 26. h5 {[%clk 0:01:15]}  f6 {[%clk 0:01:12]} 27. Be3 {[%clk 0:01:07]}  g5 {[%clk 0:01:10]} 28. h6 {[%clk 0:01:07]}  Nb6 {[%clk 0:01:04]} 29. hxg7+ {[%clk 0:01:03]}  Kxg7 {[%clk 0:00:57]} 30. Rh5 {[%clk 0:01:03]}  Qf7 {[%clk 0:00:53]} 31. Reh1 {[%clk 0:00:59]}  Rxh5 {[%clk 0:00:50]} 32. Rxh5 {[%clk 0:01:00]}  Rh8 {[%clk 0:00:49]} 33. Rxh8 {[%clk 0:01:00]}  Kxh8 {[%clk 0:00:49]} 34. Qh1+ {[%clk 0:00:58]}  Kg8 {[%clk 0:00:49]} 35. b3 {[%clk 0:00:28]}  Bf8 {[%clk 0:00:48]} 36. Bb1 {[%clk 0:00:24]}  Nd7 {[%clk 0:00:38]} 37. Qf1 {[%clk 0:00:20]}  e5 {[%clk 0:00:35]} 38. dxe5 {[%clk 0:00:20]}  Ndxe5 {[%clk 0:00:36]} 39. Qd1 {[%clk 0:00:15]}  g4 {[%clk 0:00:30]} 40. Qc2 {[%clk 0:00:12]}  Qh5 {[%clk 0:00:30]} 41. Qf5 {[%clk 0:00:07]}  Qh3+ {[%clk 0:00:27]} 42. Kg1 {[%clk 0:00:08]}  Be7 {[%clk 0:00:18]} 43. Qe6+ {[%clk 0:00:08]}  Kf8 {[%clk 0:00:18]} 44. Qxd5 {[%clk 0:00:09]}  Qh5 {[%clk 0:00:15]} 45. Be4 {[%clk 0:00:07]}  Ke8 {[%clk 0:00:11]} 46. b4 {[%clk 0:00:06]}  Kf8 {[%clk 0:00:10]} 47. a4 {[%clk 0:00:05]}  Qh8 {[%clk 0:00:07]} 48. b5 {[%clk 0:00:04]}  axb5 {[%clk 0:00:08]} 49. axb5 {[%clk 0:00:05]}  Nd8 {[%clk 0:00:08]} 50. Nc4 {[%clk 0:00:04]}  Nxc4 {[%clk 0:00:07]} 51. Qxc4 {[%clk 0:00:05]}  Qh5 {[%clk 0:00:06]} 52. Qd5 {[%clk 0:00:04]}  Qe8 {[%clk 0:00:05]} 53. Bh6# {[%clk 0:00:03]} 1-0


[Site "https://www.chess.com"]

[Event "Titled Tuesday Blitz April 19 Late 2022"]
[White "Sliwicki, Damian"]
[Black "Soysal, Serkan"]
[WhiteFideId "1127128"]
[BlackFideId "6349250"]
[WhiteElo "2084"]
[BlackElo "2440"]
[Result "0-1"]
[Round "02"]
[TimeControl "180+1"]
[Date "2022.04.19"]
[WhiteClock "0:01:22"]
[BlackClock "0:00:41"]

1. e4 {[%clk 0:03:00]}  e6 {[%clk 0:02:59]} 2. d4 {[%clk 0:02:57]}  d5 {[%clk 0:02:59]} 3. Nc3 {[%clk 0:02:56]}  Bb4 {[%clk 0:02:59]} 4. Qd3 {[%clk 0:02:56]}  dxe4 {[%clk 0:02:55]} 5. Qxe4 {[%clk 0:02:57]}  Nf6 {[%clk 0:02:55]} 6. Qh4 {[%clk 0:02:57]}  c5 {[%clk 0:02:50]} 7. dxc5 {[%clk 0:02:56]}  Qa5 {[%clk 0:02:49]} 8. Bd2 {[%clk 0:02:50]}  Nbd7 {[%clk 0:02:07]} 9. a3 {[%clk 0:02:33]}  Bxc3 {[%clk 0:02:03]} 10. Bxc3 {[%clk 0:02:31]}  Qxc5 {[%clk 0:02:03]} 11. O-O-O {[%clk 0:02:29]}  a5 {[%clk 0:01:43]} 12. Nf3 {[%clk 0:02:22]}  b5 {[%clk 0:01:17]} 13. Bd3 {[%clk 0:01:58]}  b4 {[%clk 0:01:04]} 14. axb4 {[%clk 0:01:57]}  axb4 {[%clk 0:01:04]} 15. Bxb4 {[%clk 0:01:57]}  Ra1+ {[%clk 0:01:04]} 16. Kd2 {[%clk 0:01:57]}  Rxd1+ {[%clk 0:01:00]} 17. Rxd1 {[%clk 0:01:58]}  Qb6 {[%clk 0:00:57]} 18. Kc1 {[%clk 0:01:46]}  Nd5 {[%clk 0:00:54]} 19. Ba3 {[%clk 0:01:36]}  Nc5 {[%clk 0:00:42]} 20. Qa4+ {[%clk 0:01:22]}  Nxa4 {[%clk 0:00:41]} 0-1


[Site "https://www.chess.com"]

[Event "Titled Tuesday Blitz April 19 Late 2022"]
[White "Sochacki, Christophe"]
[Black "Lopez, Henry"]
[WhiteFideId "662569"]
[BlackFideId "5203830"]
[WhiteElo "2480"]
[BlackElo "2177"]
[Result "1-0"]
[Round "02"]
[TimeControl "180+1"]
[Date "2022.04.19"]
[WhiteClock "0:02:52"]
[BlackClock "0:02:39"]

1. e4 {[%clk 0:03:00]}  c5 {[%clk 0:02:57]} 2. Nf3 {[%clk 0:03:00]}  d6 {[%clk 0:02:55]} 3. d4 {[%clk 0:03:01]}  cxd4 {[%clk 0:02:56]} 4. Nxd4 {[%clk 0:03:02]}  Nf6 {[%clk 0:02:55]} 5. Nc3 {[%clk 0:03:03]}  a6 {[%clk 0:02:55]} 6. Bg5 {[%clk 0:03:03]}  e6 {[%clk 0:02:55]} 7. f4 {[%clk 0:03:04]}  Be7 {[%clk 0:02:55]} 8. Qf3 {[%clk 0:03:04]}  h6 {[%clk 0:02:54]} 9. Bh4 {[%clk 0:03:04]}  Nbd7 {[%clk 0:02:54]} 10. O-O-O {[%clk 0:03:04]}  Qc7 {[%clk 0:02:54]} 11. Kb1 {[%clk 0:03:04]}  b5 {[%clk 0:02:52]} 12. Bd3 {[%clk 0:03:03]}  g5 {[%clk 0:02:51]} 13. fxg5 {[%clk 0:03:03]}  Ne5 {[%clk 0:02:50]} 14. Qe3 {[%clk 0:03:04]}  Nfg4 {[%clk 0:02:44]} 15. Qd2 {[%clk 0:03:04]}  hxg5 {[%clk 0:02:42]} 16. Bxg5 {[%clk 0:03:05]}  Bxg5 {[%clk 0:02:41]} 17. Qxg5 {[%clk 0:03:06]}  Nf2 {[%clk 0:02:39]} 18. Qf6 {[%clk 0:02:52]} 1-0


[Site "https://www.chess.com"]